[Event "MČR juniorů a juniorek v rapid šachu 2024"]
[Site "Hotel Fit Fun, Harrachov, Czech Republic"]
[Date "2024.09.21"]
[Round "6.28"]
[White "Stara Zuzana"]
[Black "Horvath Michal"]
[Result "1-0"]
[TimeControl "20+5"]
[WhiteFideId "23733543"]
[WhiteElo "1796"]
[BlackElo "1000"]

1. e4 {[%clk 00:20:09]} {[%emt 00:06:13]} c6 {[%clk 00:20:08]} {[%emt
00:00:03]} 2. d4 {[%clk 00:20:13]} {[%emt 00:00:01]} d5 {[%clk 00:20:12]}
{[%emt 00:00:01]} 3. exd5 {[%clk 00:20:15]} {[%emt 00:00:03]} cxd5 {[%clk
00:20:16]} {[%emt 00:00:01]} 4. Bd3 {[%clk 00:20:19]} {[%emt 00:00:02]} Nc6
{[%clk 00:20:19]} {[%emt 00:00:02]} 5. c3 {[%clk 00:20:23]} {[%emt 00:00:01]}
Bf5 {[%clk 00:20:20]} {[%emt 00:00:03]} 6. Bxf5 {[%clk 00:20:25]} {[%emt
00:00:03]} e6 {[%clk 00:20:17]} {[%emt 00:00:08]} 7. Bd3 {[%clk 00:20:27]}
{[%emt 00:00:03]} Bd6 {[%clk 00:20:20]} {[%emt 00:00:02]} 8. Nf3 {[%clk
00:20:27]} {[%emt 00:00:05]} Nf6 {[%clk 00:20:17]} {[%emt 00:00:09]} 9. O-O
{[%clk 00:20:22]} {[%emt 00:00:09]} Qc7 {[%clk 00:20:11]} {[%emt 00:00:11]} 10.
Bg5 {[%clk 00:20:23]} {[%emt 00:00:04]} O-O-O {[%clk 00:20:07]} {[%emt
00:00:09]} 11. Nbd2 {[%clk 00:20:03]} {[%emt 00:00:25]} h6 {[%clk 00:19:57]}
{[%emt 00:00:15]} 12. Bh4 {[%clk 00:20:04]} {[%emt 00:00:04]} g5 {[%clk
00:19:40]} {[%emt 00:00:22]} 13. Bg3 {[%clk 00:20:07]} {[%emt 00:00:02]} Rdg8
{[%clk 00:19:01]} {[%emt 00:00:45]} 14. c4 {[%clk 00:19:59]} {[%emt 00:00:13]}
h5 {[%clk 00:18:58]} {[%emt 00:00:07]} 15. Bxd6 {[%clk 00:19:01]} {[%emt
00:01:03]} Qxd6 {[%clk 00:19:00]} {[%emt 00:00:03]} 16. Re1 {[%clk 00:19:05]}
{[%emt 00:00:01]} h4 {[%clk 00:18:11]} {[%emt 00:00:54]} 17. Ne5 {[%clk
00:19:04]} {[%emt 00:00:06]} Qc7 {[%clk 00:17:55]} {[%emt 00:00:21]} 18. Qf3
{[%clk 00:18:24]} {[%emt 00:00:45]} Nxe5 {[%clk 00:17:31]} {[%emt 00:00:28]} 19.
dxe5 {[%clk 00:18:16]} {[%emt 00:00:13]} Nh5 {[%clk 00:17:25]} {[%emt
00:00:11]} 20. cxd5 {[%clk 00:18:18]} {[%emt 00:00:03]} Kd8 {[%clk 00:16:43]}
{[%emt 00:00:47]} 21. dxe6 {[%clk 00:16:37]} {[%emt 00:01:47]} fxe6 {[%clk
00:16:35]} {[%emt 00:00:14]} 22. Bb5 {[%clk 00:15:23]} {[%emt 00:01:18]} g4
{[%clk 00:16:22]} {[%emt 00:00:18]} 23. Qd3+ {[%clk 00:15:26]} {[%emt
00:00:02]} Ke7 {[%clk 00:16:16]} {[%emt 00:00:09]} 24. Rac1 {[%clk 00:15:18]}
{[%emt 00:00:15]} Qxc1 {[%clk 00:14:12]} {[%emt 00:02:09]} 25. Rxc1 {[%clk
00:15:21]} {[%emt 00:00:02]} Kf7 {[%clk 00:13:57]} {[%emt 00:00:19]} 26. Rc7+
{[%clk 00:15:23]} {[%emt 00:00:04]} Kf8 {[%clk 00:13:54]} {[%emt 00:00:08]} 27.
Qd8# {[%clk 00:15:26]} {[%emt 00:00:02]} 1-0



[ePGN "0.1;DGT LiveChess/2.2.6"]

[Event "MČR juniorů a juniorek v rapid šachu 2024"]
[Site "Hotel Fit Fun, Harrachov, Czech Republic"]
[Date "2024.09.21"]
[Round "6.29"]
[White "Housa Jan"]
[Black "Lebeda Frantisek Jiri"]
[Result "1-0"]
[TimeControl "20+5"]
[WhiteFideId "23736356"]
[WhiteElo "1788"]
[BlackElo "1000"]

1. d4 {[%clk 00:20:08]} {[%emt 00:00:02]} Nf6 {[%clk 00:20:05]} {[%emt
00:00:05]} 2. c4 {[%clk 00:20:08]} {[%emt 00:00:05]} e6 {[%clk 00:20:08]}
{[%emt 00:00:02]} 3. Nf3 {[%clk 00:20:12]} {[%emt 00:00:02]} d5 {[%clk
00:20:09]} {[%emt 00:00:03]} 4. g3 {[%clk 00:20:15]} {[%emt 00:00:02]} Bb4+
{[%clk 00:20:10]} {[%emt 00:00:05]} 5. Bd2 {[%clk 00:20:18]} {[%emt 00:00:01]}
Bxd2+ {[%clk 00:20:11]} {[%emt 00:00:03]} 6. Nbxd2 {[%clk 00:20:17]} {[%emt
00:00:07]} O-O {[%clk 00:20:07]} {[%emt 00:00:10]} 7. Bg2 {[%clk 00:20:20]}
{[%emt 00:00:02]} c6 {[%clk 00:20:06]} {[%emt 00:00:06]} 8. O-O {[%clk
00:20:21]} {[%emt 00:00:04]} Nbd7 {[%clk 00:20:08]} {[%emt 00:00:03]} 9. Qc2
{[%clk 00:20:13]} {[%emt 00:00:13]} b6 {[%clk 00:19:59]} {[%emt 00:00:13]} 10.
e4 {[%clk 00:20:11]} {[%emt 00:00:07]} dxe4 {[%clk 00:19:50]} {[%emt 00:00:14]}
11. Nxe4 {[%clk 00:20:14]} {[%emt 00:00:02]} Qc7 {[%clk 00:19:36]} {[%emt
00:00:19]} 12. Nxf6+ {[%clk 00:15:34]} {[%emt 00:04:46]} Nxf6 {[%clk 00:19:32]}
{[%emt 00:00:08]} 13. b4 {[%clk 00:14:45]} {[%emt 00:00:54]} Bb7 {[%clk
00:18:40]} {[%emt 00:00:54]} 14. c5 {[%clk 00:14:40]} {[%emt 00:00:14]} bxc5
{[%clk 00:18:41]} {[%emt 00:00:03]} 15. dxc5 {[%clk 00:13:56]} {[%emt
00:00:50]} h6 {[%clk 00:17:15]} {[%emt 00:01:31]} 16. Rfd1 {[%clk 00:13:18]}
{[%emt 00:00:42]} Rfd8 {[%clk 00:16:40]} {[%emt 00:00:40]} 17. Nd2 {[%clk
00:12:53]} {[%emt 00:00:30]} Nd5 {[%clk 00:16:17]} {[%emt 00:00:27]} 18. Qb2
{[%clk 00:11:53]} {[%emt 00:01:05]} a5 {[%clk 00:15:44]} {[%emt 00:00:40]} 19.
a3 {[%clk 00:11:56]} {[%emt 00:00:02]} Ba6 {[%clk 00:14:59]} {[%emt 00:00:50]}
20. Ne4 {[%clk 00:10:44]} {[%emt 00:01:14]} Rab8 {[%clk 00:14:07]} {[%emt
00:01:00]} 21. Nd6 {[%clk 00:08:02]} {[%emt 00:02:46]} axb4 {[%clk 00:13:22]}
{[%emt 00:00:50]} 22. Bxd5 {[%clk 00:08:05]} {[%emt 00:00:02]} cxd5 {[%clk
00:13:18]} {[%emt 00:00:10]} 23. axb4 {[%clk 00:08:02]} {[%emt 00:00:08]} Bb5
{[%clk 00:12:23]} {[%emt 00:00:59]} 24. Ra5 {[%clk 00:07:14]} {[%emt 00:00:53]}
Rxd6 {[%clk 00:11:51]} {[%emt 00:00:37]} 25. cxd6 {[%clk 00:07:11]} {[%emt
00:00:09]} Qxd6 {[%clk 00:11:53]} {[%emt 00:00:03]} 26. Ra7 {[%clk 00:05:26]}
{[%emt 00:01:50]} Ba6 {[%clk 00:11:12]} {[%emt 00:00:45]} 27. Rc1 {[%clk
00:01:12]} {[%emt 00:04:18]} Rxb4 {[%clk 00:10:03]} {[%emt 00:01:15]} 28. Rxa6
{[%clk 00:01:11]} {[%emt 00:00:07]} Qb8 {[%clk 00:08:49]} {[%emt 00:01:19]} 29.
Qa3 {[%clk 00:01:12]} {[%emt 00:00:03]} Kh7 {[%clk 00:08:30]} {[%emt 00:00:24]}
30. Qd3+ {[%clk 00:01:04]} {[%emt 00:00:13]} g6 {[%clk 00:08:27]} {[%emt
00:00:08]} 31. Rca1 {[%clk 00:01:01]} {[%emt 00:00:08]} Rb3 {[%clk 00:08:19]}
{[%emt 00:00:13]} 32. Qd4 {[%clk 00:01:02]} {[%emt 00:00:04]} Rb4 {[%clk
00:08:06]} {[%emt 00:00:19]} 33. Qf6 {[%clk 00:01:05]} {[%emt 00:00:02]} Rb7
{[%clk 00:08:04]} {[%emt 00:00:07]} 34. Ra8 {[%clk 00:01:05]} {[%emt 00:00:04]}
1-0



[ePGN "0.1;DGT LiveChess/2.2.6"]

[Event "MČR juniorů a juniorek v rapid šachu 2024"]
[Site "Hotel Fit Fun, Harrachov, Czech Republic"]
[Date "2024.09.21"]
[Round "6.3"]
[White "Mikolas Petr"]
[Black "Lihotsky Lukas"]
[Result "1/2-1/2"]
[TimeControl "20+5"]
[WhiteFideId "23713224"]
[BlackFideId "23727004"]
[WhiteElo "1892"]
[BlackElo "1975"]

1. e4 {[%clk 00:20:08]} {[%emt 00:00:02]} c6 {[%clk 00:20:09]} 2. d4 {[%clk
00:20:11]} {[%emt 00:00:02]} d5 {[%clk 00:20:13]} {[%emt 00:00:01]} 3. Nc3
{[%clk 00:20:14]} {[%emt 00:00:02]} dxe4 {[%clk 00:20:17]} {[%emt 00:00:01]} 4.
Nxe4 {[%clk 00:20:18]} {[%emt 00:00:01]} Bf5 {[%clk 00:20:21]} {[%emt
00:00:01]} 5. Ng3 {[%clk 00:20:22]} {[%emt 00:00:02]} Bg6 {[%clk 00:20:25]} 6.
h4 {[%clk 00:20:21]} {[%emt 00:00:06]} h6 {[%clk 00:20:29]} {[%emt 00:00:01]} 7.
Nf3 {[%clk 00:20:24]} {[%emt 00:00:01]} Nd7 {[%clk 00:20:33]} 8. h5 {[%clk
00:20:28]} {[%emt 00:00:01]} Bh7 {[%clk 00:20:37]} 9. Bd3 {[%clk 00:20:32]}
{[%emt 00:00:01]} Bxd3 {[%clk 00:20:41]} {[%emt 00:00:01]} 10. Qxd3 {[%clk
00:20:36]} e6 {[%clk 00:20:45]} 11. Bf4 {[%clk 00:20:09]} {[%emt 00:00:31]}
Qa5+ {[%clk 00:20:45]} {[%emt 00:00:05]} 12. Bd2 {[%clk 00:20:13]} {[%emt
00:00:02]} Bb4 {[%clk 00:20:49]} {[%emt 00:00:01]} 13. c3 {[%clk 00:20:14]}
{[%emt 00:00:04]} Be7 {[%clk 00:20:52]} {[%emt 00:00:01]} 14. c4 {[%clk
00:20:17]} {[%emt 00:00:03]} Qc7 {[%clk 00:20:56]} 15. Ne4 {[%clk 00:18:12]}
{[%emt 00:02:10]} Ngf6 {[%clk 00:20:49]} {[%emt 00:00:12]} 16. O-O-O {[%clk
00:18:13]} {[%emt 00:00:04]} Nxe4 {[%clk 00:20:00]} {[%emt 00:00:54]} 17. Qxe4
{[%clk 00:18:16]} {[%emt 00:00:02]} Nf6 {[%clk 00:19:59]} {[%emt 00:00:06]} 18.
Qe2 {[%clk 00:18:07]} {[%emt 00:00:13]} O-O {[%clk 00:19:43]} {[%emt 00:00:22]}
19. g4 {[%clk 00:16:32]} {[%emt 00:01:41]} Nh7 {[%clk 00:18:46]} {[%emt
00:01:02]} 20. Ne5 {[%clk 00:13:32]} {[%emt 00:03:05]} c5 {[%clk 00:16:58]}
{[%emt 00:01:53]} 21. d5 {[%clk 00:13:35]} {[%emt 00:00:01]} exd5 {[%clk
00:16:40]} {[%emt 00:00:23]} 22. cxd5 {[%clk 00:13:37]} {[%emt 00:00:03]} Bf6
{[%clk 00:15:41]} {[%emt 00:01:03]} 23. f4 {[%clk 00:11:43]} {[%emt 00:02:00]}
Rfe8 {[%clk 00:15:22]} {[%emt 00:00:24]} 24. Bc3 {[%clk 00:11:45]} {[%emt
00:00:03]} Rad8 {[%clk 00:15:03]} {[%emt 00:00:23]} 25. Qc4 {[%clk 00:10:46]}
{[%emt 00:01:04]} Qd6 {[%clk 00:14:16]} {[%emt 00:00:53]} 26. Rhf1 {[%clk
00:08:33]} {[%emt 00:02:17]} a6 {[%clk 00:13:35]} {[%emt 00:00:47]} 27. a4
{[%clk 00:08:37]} {[%emt 00:00:02]} Rb8 {[%clk 00:08:36]} {[%emt 00:05:03]} 28.
a5 {[%clk 00:08:40]} {[%emt 00:00:02]} b5 {[%clk 00:08:06]} {[%emt 00:00:35]}
29. axb6 {[%clk 00:08:44]} {[%emt 00:00:01]} Rxb6 {[%clk 00:08:03]} {[%emt
00:00:08]} 30. Qa4 {[%clk 00:08:48]} {[%emt 00:00:01]} Rbb8 {[%clk 00:06:44]}
{[%emt 00:01:24]} 31. Nc4 {[%clk 00:08:41]} {[%emt 00:00:12]} Qd8 {[%clk
00:06:21]} {[%emt 00:00:26]} 32. Ba5 {[%clk 00:08:02]} {[%emt 00:00:47]} Qc8
{[%clk 00:06:05]} {[%emt 00:00:21]} 33. d6 {[%clk 00:08:05]} {[%emt 00:00:03]}
Qxg4 {[%clk 00:05:30]} {[%emt 00:00:39]} 34. d7 {[%clk 00:08:03]} {[%emt
00:00:08]} Rf8 {[%clk 00:05:30]} {[%emt 00:00:04]} 35. Bc7 {[%clk 00:03:54]}
{[%emt 00:04:14]} Rb4 {[%clk 00:04:22]} {[%emt 00:01:13]} 36. Qc2 {[%clk
00:03:57]} {[%emt 00:00:02]} Qe6 {[%clk 00:03:14]} {[%emt 00:01:12]} 37. b3
{[%clk 00:03:59]} {[%emt 00:00:04]} Qh3 {[%clk 00:02:09]} {[%emt 00:01:09]} 38.
Qd3 {[%clk 00:03:01]} {[%emt 00:01:04]} Rxb3 {[%clk 00:01:33]} {[%emt
00:00:42]} 39. Qxh3 {[%clk 00:03:04]} Rxh3 {[%clk 00:01:37]} 40. Ne5 {[%clk
00:03:09]} Rxh5 {[%clk 00:01:30]} {[%emt 00:02:06]} 41. d8=Q {[%clk 00:02:50]}
{[%emt 00:00:15]} Bxd8 {[%clk 00:01:34]} {[%emt 00:00:02]} 42. Bxd8 {[%clk
00:02:54]} {[%emt 00:00:01]} Rh2 {[%clk 00:01:00]} {[%emt 00:00:38]} 43. Rd5
{[%clk 00:01:51]} {[%emt 00:01:09]} c4 {[%clk 00:00:46]} {[%emt 00:00:19]} 44.
Nxc4 {[%clk 00:01:51]} {[%emt 00:00:05]} Re8 {[%clk 00:00:38]} {[%emt
00:00:12]} 45. Ba5 {[%clk 00:01:50]} {[%emt 00:00:06]} Nf6 {[%clk 00:00:38]}
{[%emt 00:00:06]} 46. Rd2 {[%clk 00:01:06]} {[%emt 00:00:49]} Rxd2 {[%clk
00:00:38]} {[%emt 00:00:05]} 47. Kxd2 {[%clk 00:01:10]} Ne4+ {[%clk 00:00:19]}
{[%emt 00:00:24]} 48. Kc2 {[%clk 00:01:06]} {[%emt 00:00:09]} Rc8 {[%clk
00:00:23]} 49. Kd3 {[%clk 00:00:58]} {[%emt 00:00:13]} Nc5+ {[%clk 00:00:17]}
{[%emt 00:00:11]} 50. Kc3 {[%clk 00:01:00]} {[%emt 00:00:03]} Nb7 {[%clk
00:00:12]} {[%emt 00:00:11]} 51. Bb4 {[%clk 00:00:44]} {[%emt 00:00:21]} a5
{[%clk 00:00:13]} {[%emt 00:00:04]} 52. Ba3 {[%clk 00:00:48]} Nc5 {[%clk
00:00:11]} {[%emt 00:00:07]} 53. Bxc5 {[%clk 00:00:29]} {[%emt 00:00:25]} Rxc5
{[%clk 00:00:14]} 54. Kd4 {[%clk 00:00:32]} {[%emt 00:00:01]} Rb5 {[%clk
00:00:14]} {[%emt 00:00:05]} 55. Ra1 {[%clk 00:00:36]} {[%emt 00:00:02]}
1/2-1/2



[ePGN "0.1;DGT LiveChess/2.2.6"]

[Event "MČR juniorů a juniorek v rapid šachu 2024"]
[Site "Hotel Fit Fun, Harrachov, Czech Republic"]
[Date "2024.09.21"]
[Round "6.30"]
[White "Macova Marketa"]
[Black "Hudik Martin"]
[Result "0-1"]
[TimeControl "20+5"]
[WhiteFideId "23715588"]
[BlackFideId "23769947"]
[WhiteElo "1587"]
[BlackElo "1572"]

1. e4 {[%clk 00:20:08]} {[%emt 00:00:02]} c5 {[%clk 00:20:09]} {[%emt
00:00:02]} 2. Nf3 {[%clk 00:20:10]} {[%emt 00:00:01]} d6 {[%clk 00:20:13]}
{[%emt 00:00:02]} 3. d4 {[%clk 00:20:14]} {[%emt 00:00:01]} cxd4 {[%clk
00:20:17]} {[%emt 00:00:02]} 4. Nxd4 {[%clk 00:20:17]} {[%emt 00:00:01]} Nf6
{[%clk 00:20:21]} 5. Nc3 {[%clk 00:20:20]} {[%emt 00:00:02]} a6 {[%clk
00:20:23]} {[%emt 00:00:03]} 6. Be2 {[%clk 00:20:04]} {[%emt 00:00:20]} e6
{[%clk 00:20:26]} {[%emt 00:00:03]} 7. Be3 {[%clk 00:19:46]} {[%emt 00:00:23]}
Be7 {[%clk 00:20:28]} {[%emt 00:00:03]} 8. O-O {[%clk 00:19:47]} {[%emt
00:00:04]} O-O {[%clk 00:20:27]} {[%emt 00:00:05]} 9. Qd2 {[%clk 00:19:37]}
{[%emt 00:00:16]} b5 {[%clk 00:20:25]} {[%emt 00:00:07]} 10. a3 {[%clk
00:19:18]} {[%emt 00:00:23]} Bb7 {[%clk 00:20:28]} {[%emt 00:00:03]} 11. f3
{[%clk 00:19:16]} {[%emt 00:00:07]} Nbd7 {[%clk 00:20:19]} {[%emt 00:00:14]} 12.
Rad1 {[%clk 00:18:53]} {[%emt 00:00:28]} Rc8 {[%clk 00:20:15]} {[%emt
00:00:10]} 13. Bd3 {[%clk 00:16:12]} {[%emt 00:02:45]} Nc5 {[%clk 00:19:49]}
{[%emt 00:00:32]} 14. Nce2 {[%clk 00:14:48]} {[%emt 00:01:28]} Nxd3 {[%clk
00:19:22]} {[%emt 00:00:33]} 15. cxd3 {[%clk 00:14:12]} {[%emt 00:00:45]} Nd7
{[%clk 00:19:18]} {[%emt 00:00:14]} 16. Rc1 {[%clk 00:13:47]} {[%emt 00:00:30]}
Rxc1 {[%clk 00:18:34]} {[%emt 00:00:48]} 17. Rxc1 {[%clk 00:13:48]} {[%emt
00:00:04]} Nc5 {[%clk 00:18:16]} {[%emt 00:00:24]} 18. b4 {[%clk 00:12:57]}
{[%emt 00:00:56]} Nd7 {[%clk 00:17:37]} {[%emt 00:00:44]} 19. Qe1 {[%clk
00:11:34]} {[%emt 00:01:28]} Re8 {[%clk 00:16:24]} {[%emt 00:01:18]} 20. Qg3
{[%clk 00:10:57]} {[%emt 00:00:41]} Ne5 {[%clk 00:15:07]} {[%emt 00:01:23]} 21.
Rc3 {[%clk 00:09:20]} {[%emt 00:01:42]} Ng6 {[%clk 00:14:13]} {[%emt 00:00:59]}
22. Qe1 {[%clk 00:06:53]} {[%emt 00:02:32]} d5 {[%clk 00:13:23]} {[%emt
00:00:56]} 23. Qc1 {[%clk 00:05:48]} {[%emt 00:01:09]} dxe4 {[%clk 00:10:46]}
{[%emt 00:02:42]} 24. dxe4 {[%clk 00:05:42]} {[%emt 00:00:11]} Bd6 {[%clk
00:10:03]} {[%emt 00:00:48]} 25. Bg5 {[%clk 00:04:22]} {[%emt 00:01:25]} Qb8
{[%clk 00:09:13]} {[%emt 00:00:55]} 26. g3 {[%clk 00:03:09]} {[%emt 00:01:18]}
h6 {[%clk 00:07:59]} {[%emt 00:01:19]} 27. Be3 {[%clk 00:02:51]} {[%emt
00:00:22]} Ne5 {[%clk 00:05:02]} {[%emt 00:03:03]} 28. Kg2 {[%clk 00:01:57]}
{[%emt 00:00:59]} Nc4 {[%clk 00:04:17]} {[%emt 00:00:50]} 29. Bf2 {[%clk
00:01:05]} {[%emt 00:00:57]} Rc8 {[%clk 00:04:09]} {[%emt 00:00:13]} 30. Nb3
{[%clk 00:00:22]} {[%emt 00:00:48]} Qa8 {[%clk 00:03:08]} {[%emt 00:01:07]} 31.
Nc5 {[%clk 00:00:19]} {[%emt 00:00:07]} Bxc5 {[%clk 00:03:04]} {[%emt
00:00:09]} 32. Bxc5 {[%clk 00:00:22]} {[%emt 00:00:01]} Rd8 {[%clk 00:02:20]}
{[%emt 00:00:50]} 33. Rc2 {[%clk 00:00:19]} {[%emt 00:00:08]} Rd3 {[%clk
00:02:00]} {[%emt 00:00:25]} 34. a4 {[%clk 00:00:13]} {[%emt 00:00:12]} Qd8
{[%clk 00:01:51]} {[%emt 00:00:12]} 35. axb5 {[%clk 00:00:09]} {[%emt
00:00:11]} axb5 {[%clk 00:01:54]} {[%emt 00:00:01]} 36. Qb1 {[%clk 00:00:06]}
{[%emt 00:00:08]} Na3 {[%clk 00:01:36]} {[%emt 00:00:23]} 37. Qb2 {[%clk
00:00:09]} {[%emt 00:00:02]} Nxc2 {[%clk 00:01:39]} {[%emt 00:00:03]} 38. Qxc2
{[%clk 00:00:13]} Rd2 {[%clk 00:01:40]} {[%emt 00:00:04]} 0-1



[ePGN "0.1;DGT LiveChess/2.2.6"]

[Event "MČR juniorů a juniorek v rapid šachu 2024"]
[Site "Hotel Fit Fun, Harrachov, Czech Republic"]
[Date "2024.09.21"]
[Round "6.31"]
[White "Kopecka Libuse"]
[Black "Slivova Linda"]
[Result "0-1"]
[TimeControl "20+5"]
[WhiteFideId "23748826"]
[BlackFideId "23709294"]
[WhiteElo "1496"]
[BlackElo "1630"]

1. e4 {[%clk 00:20:07]} {[%emt 00:00:02]} d5 {[%clk 00:20:09]} {[%emt
00:00:01]} 2. exd5 {[%clk 00:20:08]} {[%emt 00:00:04]} Qxd5 {[%clk 00:20:13]}
{[%emt 00:00:01]} 3. Nc3 {[%clk 00:20:12]} {[%emt 00:00:02]} Qd6 {[%clk
00:20:17]} {[%emt 00:00:01]} 4. Nf3 {[%clk 00:20:11]} {[%emt 00:00:05]} Nf6
{[%clk 00:20:20]} {[%emt 00:00:02]} 5. Bc4 {[%clk 00:19:51]} {[%emt 00:00:25]}
Bg4 {[%clk 00:20:16]} {[%emt 00:00:09]} 6. O-O {[%clk 00:19:31]} {[%emt
00:00:25]} c6 {[%clk 00:19:52]} {[%emt 00:00:29]} 7. d3 {[%clk 00:18:26]}
{[%emt 00:01:10]} Nbd7 {[%clk 00:19:26]} {[%emt 00:00:32]} 8. Qe2 {[%clk
00:17:15]} {[%emt 00:01:15]} e6 {[%clk 00:18:58]} {[%emt 00:00:34]} 9. Ne4
{[%clk 00:16:31]} {[%emt 00:00:49]} Qc7 {[%clk 00:18:13]} {[%emt 00:00:50]} 10.
Bg5 {[%clk 00:15:54]} {[%emt 00:00:41]} O-O-O {[%clk 00:15:39]} {[%emt
00:02:39]} 11. Nxf6 {[%clk 00:13:22]} {[%emt 00:02:37]} gxf6 {[%clk 00:15:34]}
{[%emt 00:00:10]} 12. Bh4 {[%clk 00:11:20]} {[%emt 00:02:07]} Rg8 {[%clk
00:14:15]} {[%emt 00:01:24]} 13. Qe3 {[%clk 00:10:33]} {[%emt 00:00:52]} Bd6
{[%clk 00:13:10]} {[%emt 00:01:11]} 14. Bg3 {[%clk 00:09:16]} {[%emt 00:01:22]}
Kb8 {[%clk 00:12:45]} {[%emt 00:00:30]} 15. Nd2 {[%clk 00:07:07]} {[%emt
00:02:13]} f5 {[%clk 00:11:40]} {[%emt 00:01:10]} 16. Bxd6 {[%clk 00:05:44]}
{[%emt 00:01:29]} Qxd6 {[%clk 00:11:43]} {[%emt 00:00:02]} 17. Qg3 {[%clk
00:05:39]} {[%emt 00:00:09]} f4 {[%clk 00:09:14]} {[%emt 00:02:34]} 18. Qh4
{[%clk 00:04:15]} {[%emt 00:01:28]} Ne5 {[%clk 00:03:42]} {[%emt 00:05:38]} 19.
Ne4 {[%clk 00:01:27]} {[%emt 00:02:53]} Qc7 {[%clk 00:01:08]} {[%emt 00:02:39]}
20. Nf6 {[%clk 00:01:01]} {[%emt 00:00:30]} Nf3+ {[%clk 00:00:47]} {[%emt
00:00:26]} 21. gxf3 {[%clk 00:00:34]} {[%emt 00:00:33]} Bxf3+ {[%clk 00:00:49]}
{[%emt 00:00:02]} 22. Nxg8 {[%clk 00:00:16]} {[%emt 00:00:24]} Rxg8+ {[%clk
00:00:52]} {[%emt 00:00:02]} 23. Qg3 {[%clk 00:00:14]} {[%emt 00:00:07]} fxg3
{[%clk 00:00:55]} {[%emt 00:00:01]} 24. hxg3 {[%clk 00:00:14]} {[%emt
00:00:05]} Rxg3+ {[%clk 00:00:44]} {[%emt 00:00:16]} 25. Kh2 {[%clk 00:00:09]}
{[%emt 00:00:10]} Rg2+ {[%clk 00:00:43]} {[%emt 00:00:05]} 26. Kh3 {[%clk
00:00:12]} {[%emt 00:00:03]} Qh2# {[%clk 00:00:46]} {[%emt 00:00:03]} 0-1



[ePGN "0.1;DGT LiveChess/2.2.6"]